bitfinex/quotes_BTCUSD_20250714
["timestamp","ask_amount","ask_price","bid_price","bid_amount"]
[1752487879147,0.0648,121740.0,121730.0,1.25673507]
[1752487880116,0.0004,121740.0,121730.0,1.25673507]
[1752487880309,0.0034,121740.0,121730.0,1.25673507]
[1752487881510,0.0361,121740.0,121730.0,1.25673507]
[1752487882485,0.0004,121740.0,121730.0,1.25673507]
[1752487882665,0.0334,121740.0,121730.0,1.25673507]
[1752487882865,0.0044,121740.0,121730.0,1.25773507]
[1752487883069,0.0004,121740.0,121730.0,1.25673507]
[1752487883325,0.0004,121740.0,121730.0,1.25873507]
[1752487883546,0.0014,121740.0,121730.0,1.26173507]
[1752487885124,0.0014,121740.0,121730.0,1.29443507]
[1752487885326,0.0014,121740.0,121730.0,1.32713507]
[1752487885550,0.0014,121740.0,121730.0,1.41350507]
[1752487888209,0.0014,121740.0,121730.0,1.40529044]
[1752487888596,0.0014,121740.0,121730.0,1.41350507]
[1752487888825,0.0004,121750.0,121740.0,0.57824639]
[1752487889002,0.0004,121750.0,121740.0,1.2420187]
[1752487889370,0.13407769,121770.0,121760.0,0.57821536]
[1752487889577,0.13407769,121770.0,121760.0,1.16060056]
[1752487889792,0.13407769,121770.0,121760.0,1.16881303]
[1752487890229,0.13407769,121770.0,121760.0,1.19371901]
[1752487890425,0.13407769,121770.0,121760.0,1.18550661]
[1752487890690,0.13858947,121770.0,121760.0,1.18650661]
[1752487890860,0.13858947,121770.0,121760.0,1.17829414]
[1752487891192,0.13858947,121770.0,121760.0,1.16186873]
[1752487891411,0.13858947,121770.0,121760.0,0.49494598]
[1752487891620,0.18851335,121770.0,121760.0,0.49494598]
[1752487892202,0.18851335,121770.0,121760.0,0.36590598]
[1752487892420,0.25251404,121770.0,121760.0,0.49494598]
[1752487892590,0.25251404,121770.0,121760.0,0.36590598]
[1752487892802,0.25251404,121770.0,121760.0,0.49494598]
[1752487893201,0.25251404,121770.0,121760.0,0.36590598]
[1752487893666,0.25251404,121770.0,121760.0,0.49494598]
[1752487893886,0.25351404,121770.0,121760.0,0.49494598]
[1752487894112,0.19483635,121770.0,121760.0,0.36590598]
[1752487894328,0.19483635,121770.0,121760.0,0.49494598]
[1752487894963,0.19483635,121770.0,121760.0,0.50315885]
[1752487895414,0.19483635,121770.0,121760.0,0.6672664]
[1752487895647,0.19483635,121770.0,121760.0,0.99974441]
[1752487895863,0.19483635,121770.0,121760.0,1.01616982]
[1752487896070,0.19483635,121770.0,121760.0,1.00795715]
[1752487896277,0.19483635,121770.0,121760.0,1.01616982]
[1752487896459,0.19483635,121770.0,121760.0,0.68369195]
[1752487896707,0.19483635,121770.0,121760.0,1.00795715]
[1752487897143,0.19483635,121770.0,121760.0,1.01616982]
[1752487897558,0.19483635,121770.0,121760.0,0.68369195]
[1752487897818,0.19483635,121770.0,121760.0,1.00795715]
[1752487898014,0.19483635,121770.0,121760.0,1.01616982]
[1752487898508,0.19483635,121770.0,121760.0,1.00795715]
[1752487898738,0.19483635,121770.0,121760.0,0.99974441]
[1752487899412,0.19483635,121770.0,121760.0,1.00795715]
[1752487899640,0.19483635,121770.0,121760.0,0.82727405]
[1752487900531,0.19483635,121770.0,121760.0,0.84369973]
[1752487900769,0.19483635,121770.0,121760.0,1.00795728]
[1752487901196,0.19483635,121770.0,121760.0,0.50300885]
[1752487901409,0.19483635,121770.0,121760.0,0.49494598]
[1752487901841,0.19483635,121770.0,121760.0,0.49486598]
[1752487902052,0.19483635,121770.0,121760.0,0.50307885]
[1752487902474,0.19483635,121770.0,121760.0,0.51129166]
[1752487902683,0.19483635,121770.0,121760.0,0.50307885]
[1752487902899,0.19483635,121770.0,121760.0,0.67554914]
[1752487903109,0.19483635,121770.0,121760.0,0.68376181]
[1752487903330,0.19483635,121770.0,121760.0,0.67554914]
[1752487903541,0.19483635,121770.0,121760.0,0.69197441]
[1752487903974,0.19483635,121770.0,121760.0,1.02445215]
[1752487904207,0.19483635,121770.0,121760.0,1.01623961]
[1752487904855,0.19483635,121770.0,121760.0,1.02435293]
[1752487905305,0.19483635,121770.0,121760.0,0.99981441]
[1752487905796,0.19483635,121770.0,121760.0,1.00802715]
[1752487906228,0.19483635,121770.0,121760.0,0.36590598]
[1752487906448,0.67373801,121770.0,121760.0,0.001]
[1752487906659,0.6901618,121770.0,121760.0,0.001]
[1752487906866,0.8190818,121770.0,121760.0,0.001]
[1752487907304,0.4866046,121770.0,121760.0,0.001]
[1752487907516,0.81908166,121770.0,121760.0,0.001]
[1752487907722,0.69016166,121770.0,121760.0,0.001]
[1752487907943,0.28439505,121770.0,121760.0,0.001]
[1752487908155,0.40510346,121770.0,121760.0,0.001]
[1752487908369,0.19483635,121770.0,121760.0,0.84594816]
[1752487908580,0.11983635,121770.0,121760.0,0.99129303]
[1752487908797,0.11983635,121770.0,121760.0,0.86237303]
[1752487909006,0.11983635,121770.0,121760.0,0.99129303]
[1752487909220,0.19483635,121770.0,121760.0,0.96665556]
[1752487909422,0.11983635,121770.0,121760.0,0.9748683]
[1752487909604,0.11983635,121770.0,121760.0,0.67524064]
[1752487909809,0.19483635,121770.0,121760.0,0.96665556]
[1752487909945,0.14491247,121770.0,121760.0,0.98308056]
[1752487910160,0.14491247,121770.0,121760.0,0.97486816]
[1752487910365,0.14491247,121770.0,121760.0,0.97486823]
[1752487910577,0.06991247,121770.0,121760.0,0.97486823]
[1752487911019,0.14491247,121770.0,121760.0,0.65881563]
[1752487911436,0.06991247,121770.0,121760.0,0.65881563]
[1752487911614,0.14491247,121770.0,121760.0,0.66702817]
[1752487912585,0.14491247,121770.0,121760.0,0.65060303]
[1752487913013,0.14491247,121770.0,121760.0,0.66702804]
[1752487913486,0.06991247,121770.0,121760.0,0.99129317]
[1752487914200,0.14491247,121770.0,121760.0,0.99129317]
[1752487914353,0.14491247,121770.0,121760.0,0.98308077]
[1752487914554,0.00621247,121770.0,121760.0,0.99129317]
[1752487915245,0.08121247,121770.0,121760.0,0.99129317]
[1752487916269,0.14411247,121770.0,121760.0,0.98308077]
[1752487916490,0.14411247,121770.0,121760.0,0.98304083]
[1752487916699,0.14411247,121770.0,121760.0,0.9912533]
[1752487916909,0.14411247,121770.0,121760.0,0.6669881]
[1752487917131,0.14411247,121770.0,121760.0,0.99125337]
[1752487917541,0.14411247,121770.0,121760.0,0.98304083]
[1752487918176,0.14411247,121770.0,121760.0,0.97482823]
[1752487918389,0.14411247,121770.0,121760.0,0.98304083]
[1752487918598,0.14411247,121770.0,121760.0,0.97482823]
[1752487919144,0.14411247,121770.0,121760.0,0.341]
[1752487919774,0.14411247,121770.0,121760.0,0.46988]
[1752487920225,0.52651328,121770.0,121760.0,0.46988]
[1752487920449,0.53472514,121770.0,121760.0,0.341]
[1752487920709,0.79674037,121770.0,121760.0,0.341]
[1752487920921,0.78852864,121770.0,121760.0,0.341]
[1752487921125,0.78452864,121770.0,121760.0,0.34]
[1752487921367,0.83518254,121770.0,121760.0,0.001]
[1752487921576,1.16144774,121770.0,121760.0,0.001]
[1752487921794,0.83718254,121770.0,121760.0,0.001]
[1752487922015,0.83518254,121770.0,121760.0,0.001]
[1752487922442,0.83718254,121770.0,121760.0,0.001]
[1752487922650,0.15482636,121750.0,121740.0,0.46888]
[1752487922859,0.22696019,121750.0,121740.0,0.34]
[1752487923077,0.23517347,121750.0,121740.0,0.34]
[1752487923499,0.23417347,121750.0,121740.0,0.34]
[1752487923719,0.2341734,121750.0,121740.0,0.34]
[1752487923983,0.24238674,121750.0,121740.0,0.341]
[1752487924187,0.24438674,121750.0,121740.0,0.341]
[1752487924652,0.2361734,121750.0,121740.0,0.341]
[1752487924861,0.25260009,121750.0,121740.0,0.341]
[1752487925074,0.25260009,121750.0,121740.0,0.46988]
[1752487925278,0.26081364,121750.0,121740.0,0.46988]
[1752487925485,0.42508461,121750.0,121740.0,0.001]
[1752487925707,0.26081357,121750.0,121740.0,0.001]
[1752487926756,0.26281357,121750.0,121740.0,0.001]
[1752487927389,0.4605822,121750.0,121740.0,0.001]
[1752487927609,0.45236892,121750.0,121740.0,0.001]
[1752487928499,0.76842071,121750.0,121740.0,0.001]
[1752487928919,0.44415551,121750.0,121740.0,0.001]
[1752487929122,0.76842071,121750.0,121740.0,0.001]
[1752487929569,0.77676149,121750.0,121740.0,0.001]
[1752487933546,0.57299551,121750.0,121740.0,0.001]
[1752487934379,0.44415551,121750.0,121740.0,0.001]
[1752487934602,0.27988407,121750.0,121740.0,0.3252652]
[1752487934981,0.29631055,121750.0,121740.0,0.3252652]
[1752487935389,0.46058199,121750.0,121740.0,0.001]
[1752487935600,0.77663405,121750.0,121740.0,0.001]
[1752487935826,0.90547405,121750.0,121740.0,0.001]
[1752487936685,0.77663405,121750.0,121740.0,0.001]
[1752487937132,0.90543405,121750.0,121740.0,0.001]
[1752487937582,0.99514474,121750.0,121740.0,0.001]
[1752487938016,0.99314474,121750.0,121740.0,0.001]
[1752487938896,0.073,121710.0,121700.0,0.51255542]
[1752487939112,0.072,121710.0,121700.0,0.97383741]
[1752487939332,0.08843141,121710.0,121700.0,0.64135542]
[1752487939794,0.08843141,121710.0,121700.0,0.34]
[1752487940017,0.13013891,121720.0,121710.0,0.16432503]
[1752487940221,0.13013884,121720.0,121710.0,0.62560634]
[1752487940634,0.12192388,121720.0,121710.0,0.96560634]
[1752487940859,0.12192388,121720.0,121710.0,0.97382232]
[1752487941110,0.12192388,121720.0,121710.0,1.01492634]
[1752487941377,0.12192388,121720.0,121710.0,0.97382238]
[1752487941623,0.12292388,121720.0,121710.0,0.97382238]
[1752487942123,0.12692388,121720.0,121710.0,0.97482232]
[1752487942365,0.12692388,121720.0,121710.0,0.97482238]
[1752487942627,0.12692388,121720.0,121710.0,0.99125427]
[1752487942872,0.12692388,121720.0,121710.0,0.98303836]
[1752487943091,0.12692388,121720.0,121710.0,0.96660634]
[1752487943325,0.12692388,121720.0,121710.0,0.97482238]
[1752487944093,0.12692388,121720.0,121710.0,0.96660634]
[1752487944322,0.13513884,121720.0,121710.0,0.96660634]
[1752487944525,0.12692388,121720.0,121710.0,0.97482232]
[1752487944974,0.12692388,121720.0,121710.0,0.97482238]
[1752487945091,0.12692388,121720.0,121710.0,0.63412503]
[1752487945294,0.13513898,121720.0,121710.0,0.96660641]
[1752487945499,0.12692388,121720.0,121710.0,0.96660641]
[1752487945701,0.12692388,121720.0,121710.0,0.97482252]
[1752487945900,0.12692388,121720.0,121710.0,0.51354128]
[1752487946115,0.12692388,121720.0,121710.0,0.96660648]
[1752487946313,0.12692388,121720.0,121710.0,0.84602259]
[1752487946563,0.12692388,121720.0,121710.0,0.97482259]
[1752487946970,0.05492388,121720.0,121710.0,0.84602259]
[1752487947195,0.12692388,121720.0,121710.0,0.84602259]
[1752487947385,0.12692388,121720.0,121710.0,0.97478259]
[1752487947587,0.12692388,121720.0,121710.0,0.97478266]
[1752487947982,0.13513884,121720.0,121710.0,0.84602266]
[1752487948186,0.13513884,121720.0,121710.0,0.7940252]
[1752487948403,0.13513884,121720.0,121710.0,0.96656641]
[1752487948611,0.07135394,121720.0,121710.0,0.80224145]
[1752487948766,0.14335394,121720.0,121710.0,0.7940252]
[1752487948972,0.14335394,121720.0,121710.0,0.80224145]
[1752487949532,0.13513884,121720.0,121710.0,0.81045763]
[1752487950408,0.06313884,121720.0,121710.0,0.81045763]
[1752487950613,0.06313884,121720.0,121710.0,0.97478266]
[1752487950824,0.12692388,121720.0,121710.0,0.98299877]
[1752487951061,0.12692388,121720.0,121710.0,0.97478266]
[1752487951269,0.12692388,121720.0,121710.0,0.9829987]
[1752487951709,0.12692388,121720.0,121710.0,0.86245468]
[1752487951885,0.12692388,121720.0,121710.0,0.9829987]
[1752487952222,0.12692388,121720.0,121710.0,0.99121468]
[1752487952640,0.12692388,121720.0,121710.0,0.99943045]
[1752487952847,0.12692388,121720.0,121710.0,0.87067045]
[1752487953058,0.12692388,121720.0,121710.0,0.99943045]
[1752487953482,0.12692388,121720.0,121710.0,0.99121468]
[1752487953897,0.12692388,121720.0,121710.0,0.99943004]
[1752487954446,0.05492388,121720.0,121710.0,0.99121427]
[1752487954662,0.12692388,121720.0,121710.0,0.98299843]
[1752487954883,0.12692388,121720.0,121710.0,0.64230121]
[1752487955094,0.12692388,121720.0,121710.0,0.80220145]
[1752487955301,0.12692388,121720.0,121710.0,0.81041763]
[1752487955507,0.12692388,121720.0,121710.0,0.80220145]
[1752487955727,0.12692388,121720.0,121710.0,0.6652652]
[1752487955939,0.05492388,121720.0,121710.0,0.6652652]
[1752487956185,0.12692388,121720.0,121710.0,0.97474238]
[1752487956391,0.12692388,121720.0,121710.0,0.98295836]
[1752487956608,0.12692388,121720.0,121710.0,0.99117413]
[1752487957027,0.12692388,121720.0,121710.0,0.84602238]
[1752487957233,0.12692388,121720.0,121710.0,0.97474238]
[1752487957444,0.12692388,121720.0,121710.0,0.80220145]
[1752487957654,0.12692388,121720.0,121710.0,0.97474266]
[1752487958075,0.12692388,121720.0,121710.0,0.98295877]
[1752487959521,0.05492388,121720.0,121710.0,0.98295877]
[1752487959746,0.12692388,121720.0,121710.0,0.98295877]
[1752487959925,0.12692388,121720.0,121710.0,0.99117481]
[1752487960149,0.12692388,121720.0,121710.0,0.99939079]
[1752487960354,0.12692388,121720.0,121710.0,0.99939045]
[1752487960555,0.12692388,121720.0,121710.0,0.99117454]
[1752487960836,0.12692388,121720.0,121710.0,0.99935004]
[1752487961788,0.12692388,121720.0,121710.0,0.99935011]
[1752487961991,0.12692388,121720.0,121710.0,0.98291836]
[1752487962198,0.05492388,121720.0,121710.0,0.99113413]
[1752487962399,0.12692388,121720.0,121710.0,0.99113413]
[1752487962611,0.05492388,121720.0,121710.0,0.99113413]
[1752487962866,0.12692388,121720.0,121710.0,1.02113413]
[1752487963088,0.05492388,121720.0,121710.0,1.02113413]
[1752487963327,0.12692388,121720.0,121710.0,1.02113413]
[1752487963543,0.05492388,121720.0,121710.0,1.02113413]
[1752487963774,0.12692388,121720.0,121710.0,1.02113413]
[1752487964427,0.12692388,121720.0,121710.0,0.85423836]
[1752487964640,0.12692388,121720.0,121710.0,0.99113427]
[1752487964858,0.12692388,121720.0,121710.0,0.99935011]
[1752487965101,0.12692388,121720.0,121710.0,0.87067011]
[1752487965336,0.12692388,121720.0,121710.0,0.96648634]
[1752487965576,0.05492388,121720.0,121710.0,0.98291836]
[1752487965787,0.12692388,121720.0,121710.0,0.97470238]
[1752487966119,0.12692388,121720.0,121710.0,0.96648634]
[1752487966338,0.1354396,121720.0,121710.0,0.51354121]
[1752487966550,0.13543953,121720.0,121710.0,0.96644641]
[1752487966781,0.12722457,121720.0,121710.0,0.64218121]
[1752487966989,0.12722457,121720.0,121710.0,0.98287856]
[1752487967202,0.12722457,121720.0,121710.0,0.99931045]
[1752487968309,0.12722457,121720.0,121710.0,0.99931011]
[1752487968521,0.12722457,121720.0,121710.0,0.99109427]
[1752487968879,0.12722457,121720.0,121710.0,0.67504491]
[1752487969123,0.12722457,121720.0,121710.0,0.99931011]
[1752487969339,0.12722457,121720.0,121710.0,0.98287836]
[1752487969550,0.05522457,121720.0,121710.0,0.98287836]
[1752487969761,0.12722457,121720.0,121710.0,0.97466238]
[1752487969954,0.0634396,121720.0,121710.0,0.47785625]
[1752487970202,0.12722457,121720.0,121710.0,0.97466266]
[1752487970412,0.14365483,121720.0,121710.0,0.341]
[1752487970609,0.17555477,121720.0,121710.0,0.7939052]
[1752487970869,0.1493396,121720.0,121710.0,0.7939052]
[1752487971074,0.14112457,121720.0,121710.0,0.96644648]
[1752487971218,0.14112457,121720.0,121710.0,0.97466259]
[1752487971443,0.14112457,121720.0,121710.0,0.97466252]
[1752487971444,0.06912457,121720.0,121710.0,0.97466252]
[1752487971637,0.14112457,121720.0,121710.0,0.97466252]
[1752487971840,0.07722457,121720.0,121710.0,0.9828785]
[1752487972191,0.07722457,121720.0,121710.0,0.97466252]
[1752487973267,0.07722457,121720.0,121710.0,0.9828785]
[1752487973929,0.07722457,121720.0,121710.0,0.341]
[1752487973930,0.14062457,121720.0,121710.0,0.341]
[1752487974148,0.23840194,121720.0,121710.0,0.4696]
[1752487974369,0.23018671,121720.0,121710.0,0.47781625]
[1752487974571,0.23840188,121720.0,121710.0,0.4696]
[1752487975193,0.15818671,121720.0,121710.0,0.47781625]
[1752487975453,0.23840181,121720.0,121710.0,0.4696]
[1752487976186,0.16640181,121720.0,121710.0,0.4696]
[1752487976395,0.23840181,121720.0,121710.0,0.4696]
[1752487976826,0.23840181,121720.0,121710.0,0.47781625]
[1752487977033,0.23018671,121720.0,121710.0,0.47781625]
[1752487977253,0.23018671,121720.0,121710.0,0.4696]
[1752487977672,0.23840188,121720.0,121710.0,0.4696]
[1752487979683,0.25483255,121720.0,121710.0,0.4696]
[1752487979898,0.26304805,121720.0,121710.0,0.4696]
[1752487980124,0.72697928,121720.0,121710.0,0.341]
[1752487980351,0.72697928,121720.0,121710.0,0.46956]
[1752487980590,0.41092804,121720.0,121710.0,0.46956]
[1752487981242,0.24661651,121720.0,121710.0,0.46956]
[1752487981720,0.25483208,121720.0,121710.0,0.46956]
[1752487982177,0.41092804,121720.0,121710.0,0.46956]
[1752487982999,0.41092804,121720.0,121710.0,0.341]
[1752487983212,0.24661651,121720.0,121710.0,0.46956]
[1752487983420,0.41092804,121720.0,121710.0,0.46956]
[1752487984256,0.24661618,121720.0,121710.0,0.46956]
[1752487984461,0.25483168,121720.0,121710.0,0.46956]
[1752487984681,0.24661618,121720.0,121710.0,0.46956]
[1752487985086,0.41914321,121720.0,121710.0,0.46956]
[1752487985301,0.25483168,121720.0,121710.0,0.46956]
[1752487985526,0.24661618,121720.0,121710.0,0.46956]
[1752487985737,0.25483107,121720.0,121710.0,0.341]
[1752487985961,0.26304651,121720.0,121710.0,0.46952]
[1752487986132,0.25483107,121720.0,121710.0,0.46952]
[1752487986342,0.26304651,121720.0,121710.0,0.46952]
[1752487986545,0.25483107,121720.0,121710.0,0.46952]
[1752487986749,0.24661577,121720.0,121710.0,0.46952]
[1752487986933,0.26304644,121720.0,121710.0,0.46952]
[1752487987121,0.254831,121720.0,121710.0,0.46952]
[1752487987305,0.26212249,121720.0,121710.0,0.341]
[1752487987514,0.26633793,121720.0,121710.0,0.46852]
[1752487987714,0.16386176,121720.0,121710.0,0.83780641]
[1752487987949,0.17007806,121720.0,121710.0,0.64927725]
[1752487988151,0.170078,121720.0,121710.0,0.97354245]
[1752487988371,0.16386283,121720.0,121710.0,0.99919011]
[1752487988582,0.073,121720.0,121710.0,0.93107011]
[1752487988787,0.06344924,121720.0,121710.0,1.05955011]
[1752487988999,0.25640667,121720.0,121710.0,0.341]
[1752487989255,0.25140667,121720.0,121710.0,0.96528641]
[1752487989454,0.09531071,121720.0,121710.0,0.97350245]
[1752487989674,0.25962224,121720.0,121710.0,0.97350252]
[1752487989883,0.25962224,121720.0,121710.0,0.98171856]
[1752487990082,0.25140714,121720.0,121710.0,0.6642652]
[1752487990290,0.25140714,121720.0,121710.0,0.97350266]
[1752487990522,0.25340714,121720.0,121710.0,0.85423877]
[1752487990723,0.25340714,121720.0,121710.0,0.46948]
[1752487990933,0.31500714,121720.0,121710.0,0.64923746]
[1752487991136,0.31900714,121720.0,121710.0,0.65023746]
[1752487991343,0.09209561,121720.0,121710.0,0.99093475]
[1752487991551,0.08388004,121720.0,121710.0,0.99093475]
[1752487991771,0.08388004,121720.0,121710.0,0.99915066]
[1752487991974,0.08288004,121720.0,121710.0,0.99915066]
[1752487992195,0.08288004,121720.0,121710.0,0.99915025]
[1752487992396,0.08488004,121720.0,121710.0,0.99915025]
[1752487993583,0.24919157,121720.0,121710.0,0.46948]
[1752487993817,0.24919157,121720.0,121710.0,0.65023732]
[1752487994028,0.09309508,121720.0,121710.0,1.06515031]
[1752487994234,0.09309508,121720.0,121710.0,1.03231031]
[1752487994472,0.10131058,121720.0,121710.0,1.03231031]
[1752487994894,0.10952615,121720.0,121710.0,1.03231031]
[1752487995077,0.10952615,121720.0,121710.0,1.03231045]
[1752487995078,0.27383768,121720.0,121710.0,1.03231045]
[1752487995300,0.27383768,121720.0,121710.0,0.99911011]
[1752487995509,0.10131058,121720.0,121710.0,0.99910977]
[1752487995832,0.10952615,121720.0,121710.0,0.99910977]
[1752487996053,0.10952615,121720.0,121710.0,0.6666288]
[1752487996258,0.10131058,121720.0,121710.0,0.99910977]
[1752487996666,0.26562211,121720.0,121710.0,0.98267816]
[1752487996916,0.25740701,121720.0,121710.0,0.98267816]
[1752487997128,0.24919171,121720.0,121710.0,0.83780648]
[1752487997342,0.24919171,121720.0,121710.0,0.85423877]
[1752487997552,0.24919171,121720.0,121710.0,0.65841357]
[1752487997755,0.24919171,121720.0,121710.0,0.53818961]
[1752487997932,0.24919171,121720.0,121710.0,0.52997357]
[1752487998138,0.24919171,121720.0,121710.0,0.51354128]
[1752487998344,0.24097627,121720.0,121710.0,0.65019746]
[1752487998558,0.24097627,121720.0,121710.0,0.6584135]
[1752487999183,0.24097627,121720.0,121710.0,0.66662948]
[1752487999623,0.24919157,121720.0,121710.0,0.67484539]
[1752488000203,0.09309561,121720.0,121710.0,0.66662948]
[1752488000910,0.25740714,121720.0,121710.0,0.6584135]
[1752488001112,0.25740714,121720.0,121710.0,0.66662948]
[1752488002258,0.25740714,121720.0,121710.0,0.6584135]
[1752488002779,0.25740714,121720.0,121710.0,0.66662948]
[1752488003111,0.25740714,121720.0,121710.0,0.6584135]
[1752488003446,0.25740714,121720.0,121710.0,0.66662948]
[1752488004244,0.08487964,121720.0,121710.0,0.66662948]
[1752488004456,0.08487964,121720.0,121710.0,0.67484539]
[1752488004673,0.09309508,121720.0,121710.0,0.67480539]
[1752488004875,0.09309501,121720.0,121710.0,0.67480498]
[1752488005381,0.09309501,121720.0,121710.0,0.66658914]
[1752488005620,0.09309501,121720.0,121710.0,0.67480498]
[1752488005837,0.09309501,121720.0,121710.0,0.66658914]
[1752488006032,0.09309501,121720.0,121710.0,0.65837323]
[1752488006450,0.09309501,121720.0,121710.0,0.66658914]
[1752488006887,0.08487964,121720.0,121710.0,0.66658907]
[1752488007104,0.08487964,121720.0,121710.0,0.66658914]
[1752488007348,0.09309501,121720.0,121710.0,0.66658914]
[1752488007518,0.10131045,121720.0,121710.0,0.52997323]
[1752488007718,0.10131045,121720.0,121710.0,0.65833323]
[1752488007926,0.10131045,121720.0,121710.0,0.66654914]
[1752488008341,0.10131045,121720.0,121710.0,0.64190121]
[1752488008572,0.10131045,121720.0,121710.0,0.6583331]
[1752488008797,0.10131045,121720.0,121710.0,0.5299731]
[1752488009008,0.10131045,121720.0,121710.0,0.64190121]
[1752488009211,0.10131045,121720.0,121710.0,0.65011725]
[1752488009438,0.10131045,121720.0,121710.0,0.91713816]
[1752488009439,0.06844924,121720.0,121710.0,0.91713816]
[1752488009853,0.006,121720.0,121710.0,1.29072336]
[1752488010061,0.006,121720.0,121710.0,1.41904336]
[1752488010062,0.06844924,121720.0,121710.0,1.41904336]
[1752488010261,0.06844924,121720.0,121710.0,1.09477816]
[1752488010444,0.06244924,121730.0,121720.0,0.18895743]
[1752488010699,0.06244924,121730.0,121720.0,0.57912263]
[1752488010904,0.06244924,121730.0,121720.0,0.70744263]
[1752488011082,0.06244924,121730.0,121720.0,0.62844263]
[1752488011378,0.08971739,121750.0,121720.0,0.62844263]
[1752488011379,0.06244924,121740.0,121730.0,0.56164191]
[1752488011616,0.06244924,121740.0,121730.0,1.01422711]
[1752488012447,0.07066292,121740.0,121730.0,1.01422711]
[1752488012683,0.26220244,121750.0,121730.0,1.0224414]
[1752488012891,0.06244924,121740.0,121730.0,0.8941214]
[1752488013005,0.06244924,121740.0,121730.0,1.0224414]
[1752488013434,0.23486443,121750.0,121740.0,0.17249863]
[1752488013639,0.22665109,121750.0,121740.0,0.30903265]
[1752488013850,0.23486437,121750.0,121740.0,0.29260454]
[1752488014074,0.17927778,121750.0,121740.0,0.30903291]
[1752488014280,0.17106437,121750.0,121740.0,0.317247]
[1752488014640,0.17111552,121750.0,121740.0,0.30903291]
[1752488014857,0.40604928,121750.0,121740.0,0.12832]
[1752488015069,0.47484928,121750.0,121740.0,0.13753422]
[1752488015287,0.1488475,121750.0,121740.0,0.67281213]
[1752488015505,0.00505115,121750.0,121740.0,1.06109983]
[1752488016345,0.00705115,121750.0,121740.0,1.06109983]
[1752488016667,0.06950039,121750.0,121740.0,1.06109983]
[1752488016877,0.0777134,121750.0,121740.0,1.06109983]
[1752488017077,0.00705115,121750.0,121740.0,1.06109983]
[1752488017284,0.07771333,121750.0,121740.0,1.06109983]
[1752488017494,0.00705115,121750.0,121740.0,1.06109983]
[1752488017757,0.06950039,121750.0,121740.0,1.06109983]
[1752488018258,0.01526409,121750.0,121740.0,1.06109983]
[1752488018394,0.00705115,121750.0,121740.0,1.06109983]
[1752488019856,0.00705115,121750.0,121740.0,0.93281983]
[1752488020064,0.00705115,121750.0,121740.0,1.06105983]
[1752488020475,0.00705115,121750.0,121740.0,0.93281983]
[1752488020789,0.00705115,121750.0,121740.0,1.06105983]
[1752488021195,0.00705115,121750.0,121740.0,0.93281983]
[1752488021396,0.00705115,121750.0,121740.0,1.06105983]
[1752488021611,0.06950039,121750.0,121740.0,1.06105983]
[1752488022089,0.06950039,121750.0,121740.0,0.93281983]
[1752488022477,0.06950039,121750.0,121740.0,1.06101983]
[1752488023917,0.06950039,121750.0,121740.0,0.60855463]
[1752488024122,0.71891036,121750.0,121740.0,0.341]
[1752488024337,0.78398805,121750.0,121740.0,0.341]
[1752488024540,0.78398805,121750.0,121740.0,0.4692]
[1752488024746,0.78398805,121750.0,121740.0,0.341]
[1752488025569,0.78398805,121750.0,121740.0,0.4692]
[1752488025768,0.45972285,121750.0,121740.0,0.341]
[1752488025984,0.45972285,121750.0,121740.0,0.4692]
[1752488026191,0.45972285,121750.0,121740.0,0.341]
[1752488026405,0.45972285,121750.0,121740.0,0.46916]
[1752488026620,0.45972285,121750.0,121740.0,0.12916]
[1752488026830,0.78398805,121750.0,121740.0,0.001]
[1752488027037,0.78398805,121750.0,121740.0,0.12916]
[1752488027237,0.77577484,121750.0,121740.0,0.12916]
[1752488027483,0.76756143,121750.0,121740.0,0.12916]
[1752488028501,0.44329623,121750.0,121740.0,0.001]
[1752488028700,0.44329623,121750.0,121740.0,0.12916]
[1752488028846,0.37821854,121750.0,121740.0,0.12916]
[1752488030936,0.37821854,121750.0,121740.0,0.001]
[1752488031569,0.37821854,121750.0,121740.0,0.12912]
[1752488031995,0.37821854,121750.0,121740.0,0.001]
[1752488032248,0.37821854,121750.0,121740.0,0.12912]
[1752488032900,0.70248374,121750.0,121740.0,0.12912]
[1752488033114,0.70248374,121750.0,121740.0,0.001]
[1752488033318,0.37821854,121750.0,121740.0,0.12912]
[1752488036120,0.37821854,121750.0,121740.0,0.12908]
[1752488037936,0.37821854,121750.0,121740.0,0.001]
[1752488038298,0.37821854,121750.0,121740.0,0.12908]
[1752488038961,0.37821854,121750.0,121740.0,0.001]
[1752488039169,0.37821854,121750.0,121740.0,0.12908]
[1752488039374,0.37821854,121750.0,121740.0,0.001]
[1752488039590,0.37821854,121750.0,121740.0,0.12908]
[1752488040260,0.37821854,121750.0,121740.0,0.001]
[1752488040458,0.37821854,121750.0,121740.0,0.12908]
[1752488041661,0.37821854,121750.0,121740.0,0.12904]
[1752488041662,0.3946453,121750.0,121740.0,0.12904]
[1752488042889,0.3946453,121750.0,121740.0,0.001]
[1752488043101,0.3946453,121750.0,121740.0,0.12904]
[1752488043834,0.3946453,121750.0,121740.0,0.001]
[1752488044049,0.3946453,121750.0,121740.0,0.12904]
[1752488044270,0.23037426,121750.0,121740.0,0.30153876]
[1752488044504,0.23037426,121750.0,121740.0,0.13725422]
[1752488044729,0.23037426,121750.0,121740.0,0.30975291]
[1752488044953,0.0966112,121750.0,121740.0,0.32618068]
[1752488045229,0.08592634,121750.0,121740.0,0.65044588]
[1752488045444,0.08592634,121750.0,121740.0,0.65865963]
[1752488045912,0.07771333,121750.0,121740.0,0.65865963]
[1752488046345,0.1023527,121750.0,121740.0,0.50597811]
[1752488046562,0.1023527,121750.0,121740.0,0.6422322]
[1752488046766,0.1023527,121750.0,121740.0,0.65040622]
[1752488046975,0.10235263,121750.0,121740.0,0.32614102]
[1752488047152,0.10235263,121750.0,121740.0,0.33435497]
[1752488047359,0.09413942,121750.0,121740.0,0.33435497]
[1752488047581,0.09413942,121750.0,121740.0,0.32614075]
[1752488047792,0.10235263,121750.0,121740.0,0.3179268]
[1752488048219,0.10235263,121750.0,121740.0,0.32614075]
[1752488048431,0.10235263,121750.0,121740.0,0.33435463]
[1752488048635,0.11056597,121750.0,121740.0,0.30971278]
[1752488048844,0.11056597,121750.0,121740.0,0.18171278]
[1752488049076,0.11056597,121750.0,121740.0,0.3179268]
[1752488049286,0.10235303,121750.0,121740.0,0.17349869]
[1752488049499,0.11056644,121750.0,121740.0,0.13721415]
[1752488049701,0.11056644,121750.0,121740.0,0.30971278]
[1752488049917,0.11056644,121750.0,121740.0,0.30950578]
[1752488050109,0.11056644,121750.0,121740.0,0.30129169]
[1752488050311,0.11056644,121750.0,121740.0,0.30950578]
[1752488050517,0.10235303,121750.0,121740.0,0.30950578]
[1752488050900,0.11056651,121750.0,121740.0,0.30129169]
[1752488051104,0.10235303,121750.0,121740.0,0.3177198]